fUST/lending_fUST_20250203
["ID","MTS","AMOUNT","RATE_DAILY","PERIOD"]
[351420639,1738564245829,-500.0,0.00016438,2]
[351420641,1738564245840,-500.0,0.00016438,2]
[351420643,1738564245850,-500.0,0.00016438,2]
[351420645,1738564245859,-500.0,0.00016438,2]
[351420646,1738564245870,-790.82,0.00016438,2]
[351420647,1738564245884,-3130.13,0.00016438,2]
[351420649,1738564245893,-1028.06826848,0.0001646,2]
[351420651,1738564245903,-277.350142,0.0001646,2]
[351420652,1738564245913,-277.350142,0.0001646,2]
[351420654,1738564245922,-152.0,0.00016472,2]
[351420656,1738564245932,-634.63919091,0.00016473,2]
[351420658,1738564245941,-162.67746334,0.00016473,2]
[351420659,1738564245950,-500.0,0.00016473,2]
[351420661,1738564245960,-500.0,0.00016473,2]
[351420662,1738564245970,-500.0,0.00016473,2]
[351420663,1738564245979,-238.39969783,0.00016473,2]
[351420664,1738564245989,-152.98416799,0.00016473,2]
[351420665,1738564245999,-500.0,0.00016473,2]
[351420667,1738564246008,-159.54253048,0.00016473,2]
[351420669,1738564246018,-500.0,0.00016473,2]
[351420671,1738564246027,-219.28828518,0.00016473,2]
[351420672,1738564246036,-500.0,0.00016473,2]
[351420673,1738564246048,-501.86522182,0.00016473,2]
[351420674,1738564246058,-500.0,0.00016473,2]
[351420675,1738564246068,-500.0,0.00016473,2]
[351420676,1738564246077,-500.0,0.00016473,2]
[351420677,1738564246087,-151.49150965,0.00016473,2]
[351420678,1738564246097,-151.0,0.00016475,2]
[351420679,1738564246106,-151.0,0.00016475,2]
[351420680,1738564246115,-164.399809,0.00016475,2]
[351420681,1738564246126,-164.399809,0.00016475,2]
[351420682,1738564246135,-3000.0,0.00016475,2]
[351420683,1738564246144,-151.0,0.000165,2]
[351420684,1738564246154,-30000.0,0.000165,7]
[351420685,1738564246163,-151.0,0.000165,2]
[351420687,1738564246173,-151.0,0.000165,2]
[351420689,1738564246183,-15816.21,0.000165,2]
[351420691,1738564246193,-151.0,0.000165,2]
[351420692,1738564246203,-151.0,0.000165,2]
[351420693,1738564246213,-151.0,0.000165,2]
[351420694,1738564246222,-151.0,0.000165,2]
[351420695,1738564246233,-1028.06826848,0.000165,2]
[351420696,1738564246243,-354.5475049,0.000165,2]
[351420697,1738564246254,-721.2341428,0.000165,2]
[351420698,1738564246264,-151.0,0.000165,2]
[351420699,1738564246274,-151.0,0.000165,2]
[351420700,1738564246285,-151.0,0.000165,2]
[351420701,1738564246295,-503.82199146,0.00016573,2]
[351420702,1738564246305,-500.58249844,0.00016573,2]
[351420703,1738564246314,-501.19233727,0.00016573,2]
[351420704,1738564246324,-500.7574919,0.00016573,2]
[351420705,1738564246334,-500.0,0.00016573,2]
[351420706,1738564246344,-500.0,0.00016573,2]
[351420707,1738564246354,-267.898038,0.00016573,2]
[351420708,1738564246364,-500.0,0.00016573,2]
[351420709,1738564246377,-504.06401538,0.00016573,2]
[351420710,1738564246387,-250.67700882,0.00016573,2]
[351420711,1738564246396,-268.77097913,0.00016573,2]
[351420712,1738564246406,-470.8539082,0.00016573,2]
[351420713,1738564246415,-500.0,0.00016573,2]
[351420714,1738564246424,-500.0,0.00016573,2]
[351420715,1738564246434,-269.57182901,0.00016573,2]
[351420716,1738564246443,-277.350142,0.00016575,2]
[351420717,1738564246454,-277.350142,0.00016575,2]
[351420718,1738564246463,-277.350142,0.00016575,2]
[351420719,1738564246473,-277.350142,0.00016575,2]
[351420720,1738564246483,-151.0,0.00016575,2]
[351420721,1738564246492,-151.0,0.00016575,2]
[351420722,1738564246502,-151.0,0.00016575,2]
[351420723,1738564246511,-248.864045,0.00016575,2]
[351420724,1738564246521,-500.0,0.00016575,2]
[351420725,1738564246531,-151.0,0.00016575,2]
[351420726,1738564246540,-151.0,0.00016575,2]
[351420727,1738564246550,-151.0,0.00016575,2]
[351420728,1738564246560,-151.0,0.00016575,2]
[351420729,1738564246569,-151.0,0.00016575,2]
[351420730,1738564246579,-151.0,0.00016575,2]
[351420731,1738564246588,-151.0,0.00016575,2]
[351420732,1738564246598,-221.651867,0.00016575,2]
[351420733,1738564246607,-500.0,0.00016575,2]
[351420734,1738564246617,-500.0,0.00016575,2]
[351420735,1738564246630,-500.0,0.00016575,2]
[351420736,1738564246640,-500.0,0.00016575,2]
[351420737,1738564246650,-500.0,0.00016575,2]
[351420738,1738564246661,-510.39752795,0.00016575,2]
[351420739,1738564246673,-500.0,0.00016575,2]
[351420740,1738564246683,-503.99257032,0.00016575,2]
[351420741,1738564246693,-164.399809,0.00016575,2]
[351420742,1738564246704,-164.399809,0.00016575,2]
[351420743,1738564246713,-565.57955576,0.00016575,2]
[351420744,1738564246724,-164.399809,0.00016575,2]
[351420745,1738564246734,-164.399809,0.00016575,2]
[351420746,1738564246745,-538.69,0.00016575,2]
[351420747,1738564246755,-164.399809,0.00016575,2]
[351420748,1738564246765,-164.399809,0.00016575,2]
[351420749,1738564246775,-164.399809,0.00016575,2]
[351420750,1738564246785,-164.399809,0.00016575,2]
[351420751,1738564246796,-500.0,0.00016575,2]
[351420752,1738564246806,-500.0,0.00016575,2]
[351420753,1738564246816,-500.0,0.00016575,2]
[351420754,1738564246827,-505.65040832,0.00016575,2]
[351420755,1738564246838,-500.0,0.00016575,2]
[351420756,1738564246848,-505.9516442,0.00016575,2]
[351420757,1738564246858,-500.0,0.00016575,2]
[351420758,1738564246871,-500.0,0.00016575,2]
[351420759,1738564246895,-225.82613948,0.00016575,2]
[351420760,1738564246905,-500.0,0.00016575,2]
[351420761,1738564246916,-505.61878665,0.00016575,2]
[351420762,1738564246926,-500.0,0.00016575,2]
[351420763,1738564246937,-500.0,0.00016575,2]
[351420764,1738564246947,-500.0,0.00016575,2]
[351420765,1738564246958,-504.89239055,0.00016575,2]
[351420766,1738564246969,-500.0,0.00016575,2]
[351420767,1738564246979,-500.0,0.00016575,2]
[351420768,1738564246989,-500.0,0.00016575,2]
[351420769,1738564246999,-508.42411831,0.00016575,2]
[351420770,1738564247009,-287.62355205,0.00016575,2]
[351420771,1738564247019,-668.4,0.00016575,2]
[351420772,1738564247064,-500.0,0.00016575,2]
[351420773,1738564247074,-500.0,0.00016575,2]
[351420774,1738564247081,-206.36639231,0.00016575,2]
[351420775,1738564247091,-500.0,0.00016575,2]
[351420776,1738564247101,-500.0,0.00016575,2]
[351420777,1738564247111,-500.0,0.00016575,2]
[351420778,1738564247122,-500.0,0.00016575,2]
[351420779,1738564247140,-500.0,0.00016575,2]
[351420780,1738564247150,-500.0,0.00016575,2]
[351420781,1738564247161,-500.0,0.00016575,2]
[351420782,1738564247172,-500.0,0.00016575,2]
[351420783,1738564247183,-500.0,0.00016575,2]
[351420784,1738564247196,-500.0,0.00016575,2]
[351420785,1738564247207,-500.0,0.00016575,2]
[351420786,1738564247219,-500.0,0.00016575,2]
[351420787,1738564247229,-500.0,0.00016575,2]
[351420788,1738564247240,-500.0,0.00016575,2]
[351420789,1738564247250,-584.51,0.00016575,2]
[351420790,1738564247259,-500.0,0.00016575,2]
[351420791,1738564247269,-500.0,0.00016575,2]
[351420792,1738564247279,-610.32,0.00016575,2]
[351420793,1738564247288,-500.0,0.00016575,2]
[351420794,1738564247299,-500.0,0.00016575,2]
[351420795,1738564247310,-500.0,0.00016575,2]
[351420796,1738564247320,-614.32,0.00016575,2]
[351420797,1738564247330,-500.0,0.00016575,2]
[351420798,1738564247340,-205.59326295,0.00016575,2]
[351420799,1738564247350,-500.0,0.00016575,2]
[351420800,1738564247359,-500.0,0.00016575,2]
[351420801,1738564247369,-500.0,0.00016575,2]
[351420802,1738564247383,-500.0,0.00016575,2]
[351420803,1738564247393,-500.0,0.00016575,2]
[351420804,1738564247404,-500.0,0.00016575,2]
[351420805,1738564247414,-500.0,0.00016575,2]
[351420806,1738564247423,-859.15,0.00016575,2]
[351420807,1738564247433,-500.0,0.00016575,2]
[351420808,1738564247444,-500.0,0.00016575,2]
[351420809,1738564247453,-500.0,0.00016575,2]
[351420810,1738564247463,-500.0,0.00016575,2]
[351420811,1738564247473,-500.0,0.00016575,2]
[351420812,1738564247482,-500.0,0.00016575,2]
[351420813,1738564247492,-500.0,0.00016575,2]
[351420814,1738564247502,-267.49145739,0.00016575,2]
[351420815,1738564247512,-500.0,0.00016575,2]
[351420816,1738564247521,-500.0,0.00016575,2]
[351420817,1738564247531,-500.0,0.00016575,2]
[351420818,1738564247541,-500.0,0.00016575,2]
[351420819,1738564247551,-500.0,0.00016575,2]
[351420820,1738564247561,-500.0,0.00016575,2]
[351420821,1738564247571,-500.0,0.00016575,2]
[351420822,1738564247580,-500.0,0.00016575,2]
[351420823,1738564247590,-500.0,0.00016575,2]
[351420824,1738564247601,-500.0,0.00016575,2]
[351420825,1738564247611,-500.0,0.00016575,2]
[351420826,1738564247621,-662.49,0.00016575,2]
[351420827,1738564247639,-500.0,0.00016575,2]
[351420828,1738564247649,-500.0,0.00016575,2]
[351420829,1738564247664,-500.0,0.00016575,2]
[351420830,1738564247674,-500.0,0.00016575,2]
[351420831,1738564247684,-500.0,0.00016575,2]
[351420832,1738564247693,-500.0,0.00016575,2]
[351420833,1738564247703,-500.0,0.00016575,2]
[351420834,1738564247713,-500.0,0.00016575,2]
[351420835,1738564247723,-500.0,0.00016575,2]
[351420836,1738564247734,-177.64962819,0.00016575,2]
[351420837,1738564247743,-500.0,0.00016575,2]
[351420838,1738564247753,-634.77,0.00016575,2]
[351420839,1738564247762,-500.0,0.00016575,2]
[351420840,1738564247772,-500.0,0.00016575,2]
[351420841,1738564247782,-500.0,0.00016575,2]
[351420842,1738564247791,-504.01018062,0.00016575,2]
[351420843,1738564247801,-500.0,0.00016575,2]
[351420844,1738564247810,-689.94,0.00016575,2]
[351420845,1738564247819,-500.0,0.00016575,2]
[351420846,1738564247829,-503.12681267,0.00016575,2]
[351420847,1738564247838,-986.36,0.00016575,2]
[351420848,1738564247847,-695.9,0.00016575,2]
[351420849,1738564247858,-500.0,0.00016575,2]
[351420850,1738564247867,-500.0,0.00016575,2]
[351420851,1738564247882,-500.0,0.00016575,2]
[351420852,1738564247891,-504.34777647,0.00016575,2]
[351420853,1738564247902,-500.0,0.00016575,2]
[351420854,1738564247911,-502.61862974,0.00016575,2]
[351420855,1738564247921,-500.0,0.00016575,2]
[351420856,1738564247931,-440.5379084,0.00016575,2]
[351420857,1738564247940,-500.0,0.00016575,2]
[351420858,1738564247950,-309.19585259,0.00016575,2]
[351420859,1738564247960,-511.14,0.00016575,2]
[351420860,1738564247970,-500.0,0.00016575,2]
[351420861,1738564247979,-1084.65,0.00016575,2]
[351420862,1738564247988,-500.0,0.00016575,2]
[351420863,1738564247998,-715.32,0.00016575,2]
[351420864,1738564248008,-500.0,0.00016575,2]
[351420865,1738564248018,-500.0,0.00016575,2]
[351420866,1738564248028,-500.0,0.00016575,2]
[351420867,1738564248038,-500.0,0.00016575,2]
[351420868,1738564248049,-508.90086988,0.00016575,2]
[351420869,1738564248059,-500.0,0.00016575,2]
[351420870,1738564248068,-500.0,0.00016575,2]
[351420871,1738564248079,-500.0,0.00016575,2]
[351420872,1738564248089,-500.0,0.00016575,2]
[351420873,1738564248098,-500.0,0.00016575,2]
[351420874,1738564248108,-500.0,0.00016575,2]
[351420875,1738564248118,-500.0,0.00016575,2]
[351420876,1738564248130,-500.0,0.00016575,2]
[351420877,1738564248140,-502.74822406,0.00016575,2]
[351420878,1738564248149,-500.0,0.00016575,2]
[351420879,1738564248159,-500.0,0.00016575,2]
[351420880,1738564248168,-500.0,0.00016575,2]
[351420881,1738564248178,-500.0,0.00016575,2]
[351420882,1738564248188,-521.57733341,0.00016575,2]
[351420883,1738564248198,-428.86187301,0.00016575,2]
[351420884,1738564248207,-500.0,0.00016575,2]
[351420885,1738564248217,-500.0,0.00016575,2]
[351420886,1738564248227,-500.0,0.00016575,2]
[351420887,1738564248237,-598.39,0.00016575,2]
[351420888,1738564248246,-500.0,0.00016575,2]
[351420889,1738564248256,-500.0,0.00016575,2]
[351420890,1738564248266,-500.0,0.00016575,2]
[351420891,1738564248276,-1224.59,0.00016575,2]
[351420892,1738564248286,-500.0,0.00016575,2]
[351420893,1738564248296,-380.70153636,0.00016575,2]
[351420894,1738564248306,-509.66748153,0.00016575,2]
[351420895,1738564248315,-500.0,0.00016575,2]
[351420896,1738564248325,-556.05768658,0.00016575,2]
[351420897,1738564248335,-500.0,0.00016575,2]
[351420898,1738564248345,-500.0,0.00016575,2]
[351420899,1738564248354,-500.0,0.00016575,2]
[351420900,1738564248364,-500.0,0.00016575,2]
[351420901,1738564248373,-500.0,0.00016575,2]
[351420902,1738564248385,-500.0,0.00016575,2]
[351420903,1738564248395,-1020.39,0.00016575,2]
[351420904,1738564248404,-500.0,0.00016575,2]
[351420905,1738564248414,-500.0,0.00016575,2]
[351420906,1738564248424,-500.0,0.00016575,2]
[351420907,1738564248434,-500.0,0.00016575,2]
[351420908,1738564248444,-500.0,0.00016575,5]
[351420909,1738564248454,-641.92,0.00016575,2]
[351420910,1738564248464,-500.0,0.00016575,2]
[351420911,1738564248474,-500.0,0.00016575,2]
[351420912,1738564248484,-845.02,0.00016575,2]
[351420913,1738564248494,-500.0,0.00016575,2]
[351420914,1738564248504,-502.93808213,0.00016575,2]
[351420915,1738564248513,-518.94690071,0.00016575,2]
[351420916,1738564248523,-625.2,0.00016575,2]
[351420917,1738564248532,-500.0,0.00016575,2]
[351420918,1738564248542,-604.83,0.00016575,2]
[351420919,1738564248552,-500.0,0.00016575,2]
[351420920,1738564248562,-500.0,0.00016575,2]
[351420921,1738564248572,-500.0,0.00016575,2]
[351420922,1738564248582,-500.0,0.00016575,2]
[351420923,1738564248592,-1016.58,0.00016575,2]
[351420924,1738564248602,-500.0,0.00016575,2]
[351420925,1738564248612,-1883.78,0.00016575,2]
[351420926,1738564248622,-500.0,0.00016575,2]
[351420927,1738564248635,-500.0,0.00016575,2]
[351420928,1738564248645,-500.0,0.00016575,2]
[351420929,1738564248656,-500.0,0.00016575,2]
[351420930,1738564248666,-500.0,0.00016575,2]
[351420931,1738564248676,-500.0,0.00016575,2]
[351420932,1738564248688,-500.0,0.00016575,2]
[351420933,1738564248698,-228.01378121,0.00016575,2]
[351420934,1738564248708,-711.43,0.00016575,2]
[351420935,1738564248719,-622.13,0.00016575,2]
[351420936,1738564248729,-500.0,0.00016575,2]
[351420937,1738564248739,-509.56,0.00016575,2]
[351420938,1738564248749,-500.0,0.00016575,2]
[351420939,1738564248761,-500.0,0.00016575,2]
[351420940,1738564248771,-500.0,0.00016575,2]
[351420941,1738564248781,-500.0,0.00016575,2]
[351420942,1738564248791,-500.0,0.00016575,2]
[351420943,1738564248801,-10219.15,0.00016575,2]
[351420944,1738564248811,-500.0,0.00016575,2]
[351420945,1738564248820,-500.0,0.00016575,2]
[351420946,1738564248830,-500.0,0.00016575,2]
[351420947,1738564248839,-550.39548246,0.00016575,2]
[351420948,1738564248849,-595.04,0.00016575,2]
[351420949,1738564248859,-1511.77,0.00016575,2]
[351420950,1738564248869,-500.0,0.00016575,2]
[351420951,1738564248882,-2561.26,0.00016575,2]
[351420952,1738564248892,-886.24,0.00016575,2]
[351420953,1738564248902,-633.81,0.00016575,2]
[351420954,1738564248913,-500.0,0.00016575,2]
[351420955,1738564248923,-500.0,0.00016575,2]
[351420956,1738564248933,-919.96,0.00016575,2]
[351420957,1738564248945,-812.25,0.00016575,2]
[351420958,1738564248955,-500.0,0.00016575,2]
[351420959,1738564248965,-500.0,0.00016575,2]
[351420960,1738564248975,-500.0,0.00016575,2]
[351420961,1738564248985,-500.0,0.00016575,2]
[351420962,1738564248995,-2342.46,0.00016575,2]
[351420963,1738564249004,-663.71,0.00016575,2]
[351420964,1738564249014,-500.0,0.00016575,2]
[351420965,1738564249024,-1000.0,0.00016575,2]
[351420966,1738564249034,-4081.6,0.00016575,2]
[351420967,1738564249044,-500.0,0.00016575,2]
[351420968,1738564249054,-500.0,0.00016575,2]
[351420969,1738564249064,-264.49438859,0.00016575,2]
[351420970,1738564249073,-500.0,0.00016575,2]
[351420971,1738564249083,-500.0,0.00016575,2]
[351420972,1738564249093,-500.0,0.00016575,2]
[351420973,1738564249103,-575.72,0.00016575,2]
[351420974,1738564249113,-2783.82,0.00016575,2]
[351420975,1738564249123,-500.0,0.00016575,2]
[351420976,1738564249137,-505.12872008,0.00016575,2]
[351420977,1738564249147,-500.0,0.00016575,2]
[351420978,1738564249158,-500.0,0.00016575,2]
[351420979,1738564249168,-500.0,0.00016575,2]
[351420980,1738564249179,-504.15587746,0.00016575,2]
[351420981,1738564249188,-500.0,0.00016575,2]
[351420982,1738564249199,-500.0,0.00016575,2]
[351420983,1738564249209,-500.0,0.00016575,2]
[351420984,1738564249219,-1087.55,0.00016575,2]
[351420985,1738564249229,-508.99037486,0.00016575,2]
[351420986,1738564249239,-66694.44,0.00016575,2]
[351420987,1738564249249,-500.0,0.00016575,2]
[351420988,1738564249259,-500.0,0.00016575,2]
[351420989,1738564249268,-587.44730377,0.00016575,2]
[351420990,1738564249283,-503.05477664,0.00016575,2]
[351420991,1738564249293,-500.0,0.00016575,2]
[351420992,1738564249304,-500.0,0.00016575,2]
[351420993,1738564249314,-3424.97,0.00016575,2]
[351420994,1738564249324,-625.0,0.00016575,2]
[351420995,1738564249335,-500.0,0.00016575,2]
[351420996,1738564249346,-500.0,0.00016575,2]
[351420997,1738564249356,-500.0,0.00016575,2]
[351420998,1738564249366,-1460.69,0.00016575,2]
[351420999,1738564249377,-500.0,0.00016575,2]
[351421000,1738564249387,-546.87,0.00016575,2]
[351421001,1738564249398,-500.0,0.00016575,2]
[351421002,1738564249409,-500.0,0.00016575,2]
[351421003,1738564249419,-500.0,0.00016575,2]
[351421004,1738564249429,-500.0,0.00016575,2]
[351421005,1738564249439,-1570.01,0.00016575,2]
[351421006,1738564249449,-513.70418765,0.00016575,2]
[351421007,1738564249459,-797.04,0.00016575,2]
[351421008,1738564249469,-500.0,0.00016575,2]
[351421009,1738564249479,-500.0,0.00016575,2]
[351421010,1738564249490,-500.0,0.00016575,2]
[351421011,1738564249501,-3354.96,0.00016575,2]
[351421012,1738564249511,-500.0,0.00016575,2]
[351421013,1738564249522,-500.0,0.00016575,2]
[351421014,1738564249533,-1313.25,0.00016575,2]
[351421015,1738564249544,-500.0,0.00016575,2]
[351421016,1738564249555,-500.0,0.00016575,2]
[351421017,1738564249565,-500.0,0.00016575,2]
[351421018,1738564249575,-500.0,0.00016575,2]
[351421019,1738564249586,-1300.48,0.00016575,2]
[351421020,1738564249596,-242.39662894,0.00016575,2]
[351421021,1738564249607,-500.0,0.00016575,2]
[351421022,1738564249617,-565.2,0.00016575,2]
[351421023,1738564249630,-500.0,0.00016575,2]
[351421024,1738564249641,-500.0,0.00016575,2]
[351421025,1738564249652,-500.0,0.00016575,2]
[351421026,1738564249663,-500.0,0.00016575,2]
[351421027,1738564249673,-1538.45,0.00016575,2]
[351421028,1738564249686,-500.0,0.00016575,2]
[351421029,1738564249697,-2749.25,0.00016575,2]
[351421030,1738564249707,-563.18,0.00016575,2]
[351421031,1738564249718,-500.0,0.00016575,2]
[351421032,1738564249728,-500.0,0.00016575,2]
[351421033,1738564249739,-741.3,0.00016575,2]
[351421034,1738564249751,-6082.07,0.00016575,2]
[351421035,1738564249761,-781.25,0.00016575,2]
[351421036,1738564249771,-1000.0,0.00016575,7]
[351421037,1738564249781,-500.0,0.00016575,2]
[351421038,1738564249791,-500.0,0.00016575,2]
[351421039,1738564249801,-1099.59,0.00016575,2]
[351421040,1738564249811,-500.0,0.00016575,2]
[351421041,1738564249821,-500.0,0.00016575,2]
[351421042,1738564249942,-500.0,0.00016575,2]
[351421043,1738564249953,-500.0,0.00016575,2]
[351421044,1738564249963,-1090.69,0.00016575,2]
[351421045,1738564249972,-2301.16,0.00016575,2]
[351421046,1738564249981,-500.0,0.00016575,2]
[351421047,1738564249992,-830.03,0.00016575,2]
[351421048,1738564250001,-500.0,0.00016575,2]
[351421049,1738564250010,-500.0,0.00016575,2]
[351421050,1738564250020,-500.0,0.00016575,2]
[351421051,1738564250030,-500.0,0.00016575,2]
[351421052,1738564250039,-500.0,0.00016575,2]
[351421053,1738564250048,-1221.72,0.00016575,2]
[351421054,1738564250057,-515.62,0.00016575,2]
[351421055,1738564250067,-500.0,0.00016575,2]
[351421056,1738564250077,-2768.41,0.00016575,2]
[351421057,1738564250086,-500.0,0.00016575,2]
[351421058,1738564250096,-647.31891659,0.00016575,2]
[351421059,1738564250105,-500.0,0.00016575,2]
[351421060,1738564250114,-500.0,0.00016575,2]
[351421061,1738564250123,-628.82,0.00016575,2]
[351421062,1738564250136,-500.0,0.00016575,2]
[351421063,1738564250146,-500.0,0.00016575,2]
[351421064,1738564250155,-500.0,0.00016575,2]
[351421065,1738564250164,-500.0,0.00016575,2]
[351421066,1738564250173,-790.82,0.00016575,2]
[351421067,1738564250183,-3130.13,0.00016575,2]
[351421068,1738564250192,-151.11971487,0.00016593,2]
[351421069,1738564250201,-151.0,0.000166,2]
[351421070,1738564250211,-151.0,0.000166,2]
[351421071,1738564250220,-151.0,0.000166,2]
[351421072,1738564250230,-151.0,0.000166,2]
[351421073,1738564250239,-16075.58,0.000166,2]
[351421074,1738564250249,-151.0,0.000166,2]
[351421075,1738564250258,-151.0,0.000166,2]
[351421076,1738564250267,-151.0,0.000166,2]
[351421077,1738564250277,-151.0,0.000166,2]
[351421078,1738564250287,-151.0,0.000166,2]
[351421079,1738564250296,-151.0,0.000166,2]
[351421080,1738564250306,-151.0,0.000167,2]
[351421081,1738564250315,-151.0,0.000167,2]
[351421082,1738564250324,-151.0,0.000167,2]
[351421083,1738564250333,-151.0,0.000167,2]
[351421084,1738564250343,-151.0,0.000167,2]
[351421085,1738564250353,-151.0,0.000167,2]
[351421086,1738564250363,-151.0,0.000167,2]
[351421087,1738564250372,-151.0,0.000167,2]
[351421088,1738564250391,-30000.0,0.0001671,7]
[351421089,1738564250400,-277.350142,0.00016711,2]
[351421090,1738564250409,-277.350142,0.00016711,2]
[351421091,1738564250419,-151.0,0.00016711,2]
[351421092,1738564250428,-164.399809,0.00016711,2]
[351421093,1738564250438,-164.399801,0.00016711,2]
[351421094,1738564250448,-277.350142,0.00016712,2]
[351421095,1738564250458,-277.350142,0.00016712,2]
[351421096,1738564250468,-277.350142,0.00016712,2]
[351421097,1738564250478,-277.350142,0.00016712,2]
[351421098,1738564250487,-151.0,0.00016712,2]
[351421099,1738564250497,-151.0,0.00016712,2]
[351421100,1738564250507,-151.0,0.00016712,2]
[351421101,1738564250517,-500.0,0.00016712,2]
[351421102,1738564250527,-486.44250239,0.00016712,2]
[351421103,1738564250537,-500.0,0.00016712,2]
[351421104,1738564250547,-500.0,0.00016712,2]
[351421105,1738564250556,-500.0,0.00016712,2]
[351421106,1738564250566,-500.0,0.00016712,2]
[351421107,1738564250575,-538.69,0.00016712,2]
[351421108,1738564250585,-317.01058897,0.00016712,2]
[351421109,1738564250594,-420.63192141,0.00016712,2]
[351421110,1738564250604,-500.0,0.00016712,2]
[351421111,1738564250614,-500.0,0.00016712,2]
[351421112,1738564250624,-500.0,0.00016712,2]
[351421113,1738564250639,-500.0,0.00016712,2]
[351421114,1738564250649,-500.0,0.00016712,2]
[351421115,1738564250661,-500.0,0.00016712,2]
[351421116,1738564250671,-500.0,0.00016712,2]
[351421117,1738564250680,-500.0,0.00016712,2]
[351421118,1738564250690,-668.4,0.00016712,2]
[351421119,1738564250700,-500.0,0.00016712,2]
[351421120,1738564250710,-500.0,0.00016712,2]
[351421121,1738564250720,-500.0,0.00016712,2]
[351421122,1738564250729,-500.0,0.00016712,2]
[351421123,1738564250741,-500.0,0.00016712,2]
[351421124,1738564250751,-500.0,0.00016712,2]
[351421125,1738564250760,-500.0,0.00016712,2]
[351421126,1738564250770,-500.0,0.00016712,2]
[351421127,1738564250780,-500.0,0.00016712,2]
[351421128,1738564250790,-522.16580406,0.00016712,2]
[351421129,1738564250800,-500.0,0.00016712,2]
[351421130,1738564250809,-500.0,0.00016712,2]
[351421131,1738564250819,-500.0,0.00016712,2]
[351421132,1738564250829,-500.0,0.00016712,2]
[351421133,1738564250840,-500.0,0.00016712,2]
[351421134,1738564250849,-229.95860403,0.00016712,2]
[351421135,1738564250859,-584.51,0.00016712,2]
[351421136,1738564250868,-500.0,0.00016712,2]
[351421137,1738564250882,-500.0,0.00016712,2]
[351421138,1738564250892,-610.32,0.00016712,2]
[351421139,1738564250901,-500.0,0.00016712,2]
[351421140,1738564250911,-500.0,0.00016712,2]
[351421141,1738564250920,-500.0,0.00016712,2]
[351421142,1738564250930,-614.32,0.00016712,2]
[351421143,1738564250939,-500.0,0.00016712,2]
[351421144,1738564250949,-500.0,0.00016712,2]
[351421145,1738564250959,-500.0,0.00016712,2]
[351421146,1738564250970,-500.0,0.00016712,2]
[351421147,1738564250980,-618.66877122,0.00016712,2]
[351421148,1738564250991,-500.0,0.00016712,2]
[351421149,1738564251000,-500.0,0.00016712,2]
[351421150,1738564251009,-500.0,0.00016712,2]
[351421151,1738564251019,-859.15,0.00016712,2]
[351421152,1738564251028,-500.0,0.00016712,2]
[351421153,1738564251038,-500.0,0.00016712,2]